fUSD/lending_fUSD_20260630
["ID","MTS","AMOUNT","RATE_DAILY","PERIOD"]
[426747837,1782778246000,-151.0,0.00015,2]
[426747844,1782778246000,-500.0,0.00015,2]
[426747847,1782778246000,-500.0,0.00015,2]
[426747883,1782778246000,-500.0,0.00015,2]
[426747884,1782778246000,-500.0,0.00015,2]
[426747878,1782778246000,-500.0,0.00015,2]
[426747920,1782778246000,-2043.30398463,0.00015332,2]
[426747921,1782778246000,-2043.30398463,0.00015365,2]
[426747929,1782778246000,-1576.76,0.00016116,2]
[426747926,1782778246000,-500.0,0.00015601,2]
[426747928,1782778246000,-10000.0,0.00016036,2]
[426747931,1782778246000,-150.99,0.00016116,2]
[426747930,1782778246000,-800.98,0.00016116,2]
[426747927,1782778246000,-500.0,0.00015875,2]
[426747924,1782778246000,-1287.89,0.00015499,2]
[426747923,1782778246000,-10000.0,0.00015411,2]
[426747925,1782778246000,-165.81,0.00015547,2]
[426747941,1782778246000,-9999.99,0.00016116,2]
[426747940,1782778246000,-372.64,0.00016116,2]
[426747939,1782778246000,-9999.99,0.00016116,2]
[426747922,1782778246000,-2043.30398463,0.00015381,2]
[426747942,1782778246000,-8750.73,0.00016116,2]
[426747946,1782778246000,-1169.46,0.00016178,2]
[426747933,1782778246000,-7720.59,0.00016116,2]
[426747932,1782778246000,-5192.45,0.00016116,2]
[426747943,1782778246000,-19999.99,0.00016116,2]
[426747944,1782778246000,-999.99,0.00016116,2]
[426747935,1782778246000,-9999.99,0.00016116,2]
[426747937,1782778246000,-299.99,0.00016116,4]
[426747938,1782778246000,-4999.99,0.00016116,2]
[426747874,1782778246000,-500.0,0.00015,2]
[426747949,1782778246000,-500.0,0.00016423,2]
[426747950,1782778246000,-151.0,0.00016438,2]
[426747948,1782778246000,-1252.0,0.0001636,2]
[426747951,1782778246000,-151.0,0.00016438,2]
[426747952,1782778246000,-151.0,0.00016438,2]
[426747945,1782778246000,-500.0,0.00016149,2]
[426747919,1782778246000,-500.0,0.00015327,2]
[426747947,1782778246000,-165.81,0.00016195,2]
[426747908,1782778246000,-250.069761,0.00015,2]
[426747911,1782778246000,-500.0,0.00015053,2]
[426747886,1782778246000,-500.0,0.00015,2]
[426747885,1782778246000,-500.0,0.00015,2]
[426747882,1782778246000,-500.0,0.00015,2]
[426747887,1782778246000,-500.0,0.00015,2]
[426747893,1782778246000,-500.0,0.00015,2]
[426747891,1782778246000,-500.0,0.00015,2]
[426747888,1782778246000,-500.0,0.00015,2]
[426747889,1782778246000,-500.0,0.00015,2]
[426747897,1782778246000,-500.0,0.00015,2]
[426747904,1782778246000,-500.0,0.00015,2]
[426747895,1782778246000,-500.0,0.00015,2]
[426747900,1782778246000,-500.0,0.00015,2]
[426747899,1782778246000,-500.0,0.00015,2]
[426747879,1782778246000,-500.0,0.00015,2]
[426747903,1782778246000,-500.0,0.00015,2]
[426747902,1782778246000,-500.0,0.00015,2]
[426747912,1782778246000,-192.710337,0.00015068,2]
[426747910,1782778246000,-250.069761,0.00015,2]
[426747909,1782778246000,-250.069761,0.00015,2]
[426747905,1782778246000,-500.0,0.00015,2]
[426747918,1782778246000,-2043.30398463,0.00015273,2]
[426747914,1782778246000,-192.710337,0.00015068,2]
[426747916,1782778246000,-500.0,0.00015091,2]
[426747901,1782778246000,-500.0,0.00015,2]
[426747915,1782778246000,-192.710337,0.00015068,2]
[426747917,1782778246000,-2043.30398463,0.00015229,2]
[426747906,1782778246000,-628.352876,0.00015,2]
[426747913,1782778246000,-192.710337,0.00015068,2]
[426747907,1782778246000,-250.069761,0.00015,2]
[426747983,1782778247000,-300.0,0.00017787,2]
[426747995,1782778247000,-645.65,0.00018626,2]
[426747985,1782778247000,-2129.0,0.00017867,2]
[426747986,1782778247000,-501.96465776,0.00017897,2]
[426747989,1782778247000,-335.96757487,0.000184,2]
[426747984,1782778247000,-130233.0672252,0.00017788,2]
[426747987,1782778247000,-331.64225527,0.00018,2]
[426747991,1782778247000,-4021.18252922,0.000184,2]
[426747990,1782778247000,-192.08612594,0.000184,2]
[426747994,1782778247000,-4021.18252922,0.000186,2]
[426747993,1782778247000,-192.08612594,0.000186,2]
[426747988,1782778247000,-718.45,0.00018016,2]
[426747997,1782778247000,-820.01,0.00018626,2]
[426748003,1782778247000,-630.48,0.00018626,2]
[426748004,1782778247000,-546.01,0.00018626,2]
[426747996,1782778247000,-645.65,0.00018626,2]
[426748006,1782778247000,-335.96757487,0.000188,2]
[426748005,1782778247000,-546.01,0.00018626,2]
[426748007,1782778247000,-4021.18252922,0.000188,2]
[426748000,1782778247000,-500.0,0.00018626,2]
[426748002,1782778247000,-630.48,0.00018626,2]
[426748001,1782778247000,-500.0,0.00018626,2]
[426747999,1782778247000,-500.0,0.00018626,2]
[426747981,1782778247000,-300.0,0.00017787,2]
[426747992,1782778247000,-335.96757487,0.000186,2]
[426747982,1782778247000,-300.0,0.00017787,2]
[426747966,1782778247000,-300.0,0.00016921,2]
[426747979,1782778247000,-33347.6671,0.00017688,2]
[426747955,1782778247000,-3035.015411,0.00016438,2]
[426747954,1782778247000,-3035.015411,0.00016438,2]
[426747956,1782778247000,-3035.015411,0.00016438,2]
[426747953,1782778247000,-218.23034,0.00016438,2]
[426747957,1782778247000,-3035.015411,0.00016438,2]
[426747958,1782778247000,-206.895698,0.00016438,2]
[426747998,1782778247000,-820.01,0.00018626,2]
[426747961,1782778247000,-206.895698,0.00016438,2]
[426747971,1782778247000,-162.63,0.000173,2]
[426747960,1782778247000,-206.895698,0.00016438,2]
[426747962,1782778247000,-500.0,0.00016697,2]
[426747963,1782778247000,-165.81,0.00016843,2]
[426747964,1782778247000,-300.0,0.00016921,2]
[426747965,1782778247000,-300.0,0.00016921,2]
[426747969,1782778247000,-168.49983,0.00017209,2]
[426747970,1782778247000,-500.0,0.00017245,2]
[426747967,1782778247000,-666.0,0.00016921,2]
[426747968,1782778247000,-500.0,0.00016971,2]
[426747972,1782778247000,-1287.89,0.00017437,2]
[426747975,1782778247000,-300.0,0.00017687,2]
[426747974,1782778247000,-1683.28,0.00017645,2]
[426747976,1782778247000,-300.0,0.00017687,2]
[426747973,1782778247000,-165.81,0.00017491,2]
[426747978,1782778247000,-2000.0,0.00017688,2]
[426747977,1782778247000,-300.0,0.00017687,2]
[426747980,1782778247000,-8597.3878,0.00017688,2]
[426748008,1782778247000,-335.96757487,0.000189,2]
[426747959,1782778247000,-206.895698,0.00016438,2]
[426748010,1782778247000,-300.0,0.00018999,2]
[426748034,1782778247000,-546.01,0.00019963,2]
[426748035,1782778247000,-300.0,0.00019999,2]
[426748043,1782778247000,-3950.0,0.0002,2]
[426748044,1782778247000,-26923.0488516,0.0002,2]
[426748045,1782778247000,-1318.86632219,0.0002,2]
[426748047,1782778247000,-541.43445294,0.0002,2]
[426748046,1782778247000,-3007.09826212,0.0002,7]
[426748048,1782778247000,-200.0,0.0002,2]
[426748049,1782778247000,-38041.25559767,0.0002,2]
[426748050,1782778247000,-1064.59998034,0.0002,2]
[426748051,1782778247000,-52619.9708974,0.0002,2]
[426748054,1782778247000,-18151.27854215,0.0002,2]
[426748055,1782778247000,-5909.65719188,0.0002,2]
[426748053,1782778247000,-13105.43702097,0.0002,2]
[426748056,1782778247000,-184.01588541,0.0002,2]
[426748058,1782778247000,-179.0,0.0002,2]
[426748060,1782778247000,-560.0,0.0002,2]
[426748059,1782778247000,-475.0,0.0002,2]
[426748057,1782778247000,-157.0,0.0002,2]
[426748062,1782778247000,-252.0,0.0002,2]
[426748061,1782778247000,-201.0,0.0002,2]
[426748063,1782778247000,-664.0,0.0002,2]
[426748065,1782778247000,-869.0,0.0002,2]
[426748064,1782778247000,-152.0,0.0002,2]
[426748011,1782778247000,-300.0,0.00018999,2]
[426748041,1782778247000,-26064.27256557,0.0002,2]
[426748042,1782778247000,-403.21083539,0.0002,2]
[426748052,1782778247000,-939.62517223,0.0002,2]
[426748040,1782778247000,-179.76215624,0.0002,2]
[426748039,1782778247000,-1562.22152476,0.0002,2]
[426748014,1782778247000,-366.27966924,0.0001901,7]
[426748012,1782778247000,-300.0,0.00018999,2]
[426748013,1782778247000,-471394.06803708,0.00019,2]
[426748015,1782778247000,-335.96757487,0.000191,2]
[426748017,1782778247000,-151.0,0.00019178,2]
[426748019,1782778247000,-185.963335,0.00019178,2]
[426748018,1782778247000,-185.963335,0.00019178,2]
[426748021,1782778247000,-185.963335,0.00019178,2]
[426748024,1782778247000,-1000.0,0.00019459,2]
[426748028,1782778247000,-4021.18252922,0.000197,2]
[426748027,1782778247000,-1007.0,0.00019512,2]
[426748020,1782778247000,-185.963335,0.00019178,2]
[426748016,1782778247000,-4021.18252922,0.000191,2]
[426748031,1782778247000,-820.01,0.00019963,2]
[426748038,1782778247000,-2334.2784488,0.0002,2]
[426748037,1782778247000,-300.0,0.00019999,2]
[426748036,1782778247000,-300.0,0.00019999,2]
[426748032,1782778247000,-500.0,0.00019963,2]
[426748033,1782778247000,-630.48,0.00019963,2]
[426748022,1782778247000,-4021.18252922,0.000193,2]
[426748009,1782778247000,-4021.18252922,0.000189,2]
[426748026,1782778247000,-162.63,0.000195,2]
[426748030,1782778247000,-645.65,0.00019963,2]
[426748025,1782778247000,-4021.18252922,0.000195,2]
[426748023,1782778247000,-1287.89,0.00019374,2]
[426748029,1782778247000,-4021.18252922,0.000199,2]
[426748107,1782778248000,-152.0,0.00021,2]
[426748106,1782778248000,-664.0,0.00021,2]
[426748103,1782778248000,-560.0,0.00021,2]
[426748104,1782778248000,-201.0,0.00021,2]
[426748108,1782778248000,-869.0,0.00021,2]
[426748102,1782778248000,-475.0,0.00021,2]
[426748100,1782778248000,-157.0,0.00021,2]
[426748105,1782778248000,-252.0,0.00021,2]
[426748111,1782778248000,-190.18706304,0.000212,2]
[426748112,1782778248000,-4884.5594202,0.00021273,2]
[426748096,1782778248000,-150.0,0.00020659,2]
[426748109,1782778248000,-204.0,0.00021,2]
[426748101,1782778248000,-179.0,0.00021,2]
[426748123,1782778248000,-324.30939278,0.00021775,2]
[426748113,1782778248000,-1287.89,0.00021312,2]
[426748117,1782778248000,-300.0,0.00021499,2]
[426748115,1782778248000,-156.45618947,0.00021414,2]
[426748114,1782778248000,-190.18706304,0.000214,2]
[426748118,1782778248000,-300.0,0.00021499,2]
[426748120,1782778248000,-226.58397681,0.000215,2]
[426748119,1782778248000,-58701.00305803,0.000215,2]
[426748122,1782778248000,-190.18706304,0.000216,2]
[426748124,1782778248000,-190.18706304,0.000219,2]
[426748116,1782778248000,-300.0,0.00021499,2]
[426748121,1782778248000,-162.63,0.000215,2]
[426748125,1782778248000,-5000.0,0.00021918,2]
[426748093,1782778248000,-500.0,0.00020659,2]
[426748110,1782778248000,-500.0,0.00021141,2]
[426748095,1782778248000,-357.54746063,0.00020659,2]
[426748067,1782778248000,-204.0,0.0002,2]
[426748094,1782778248000,-500.0,0.00020659,2]
[426748068,1782778248000,-4021.18252922,0.000201,2]
[426748066,1782778248000,-2000.0,0.0002,7]
[426748127,1782778248000,-500.0,0.00022,10]
[426748072,1782778248000,-151.0,0.00020526,2]
[426748073,1782778248000,-151.0,0.00020526,2]
[426748074,1782778248000,-151.0,0.00020526,2]
[426748069,1782778248000,-152.12,0.00020148,2]
[426748071,1782778248000,-151.0,0.00020526,2]
[426748070,1782778248000,-151.0,0.00020526,2]
[426748075,1782778248000,-151.0,0.00020526,2]
[426748077,1782778248000,-151.0,0.00020526,2]
[426748087,1782778248000,-151.0,0.00020526,2]
[426748079,1782778248000,-151.0,0.00020526,2]
[426748092,1782778248000,-598.6,0.00020548,2]
[426748076,1782778248000,-151.0,0.00020526,2]
[426748081,1782778248000,-151.0,0.00020526,2]
[426748083,1782778248000,-151.0,0.00020526,2]
[426748082,1782778248000,-151.0,0.00020526,2]
[426748085,1782778248000,-151.0,0.00020526,2]
[426748084,1782778248000,-151.0,0.00020526,2]
[426748086,1782778248000,-151.0,0.00020526,2]
[426748088,1782778248000,-151.0,0.00020526,2]
[426748090,1782778248000,-150.0,0.00020547,2]
[426748097,1782778248000,-609.69328379,0.000207,2]
[426748099,1782778248000,-190.18706304,0.00021,2]
[426748089,1782778248000,-151.0,0.00020526,2]
[426748091,1782778248000,-151.0,0.00020548,2]
[426748098,1782778248000,-1126.79661102,0.00021,2]
[426748080,1782778248000,-151.0,0.00020526,2]
[426748137,1782778248000,-152.0,0.00022,2]
[426748078,1782778248000,-151.0,0.00020526,2]
[426748126,1782778248000,-150.0,0.00021918,2]
[426748157,1782778248000,-152.0,0.00023,2]
[426748164,1782778248000,-501.21584052,0.000232,2]
[426748166,1782778248000,-150.0,0.00023288,2]
[426748174,1782778248000,-150.0,0.00023288,2]
[426748176,1782778248000,-162.63,0.000233,7]
[426748173,1782778248000,-150.0,0.00023288,2]
[426748168,1782778248000,-150.0,0.00023288,2]
[426748169,1782778248000,-150.0,0.00023288,2]
[426748167,1782778248000,-150.0,0.00023288,2]
[426748172,1782778248000,-150.0,0.00023288,2]
[426748165,1782778248000,-1287.89,0.00023249,2]
[426748170,1782778248000,-150.0,0.00023288,2]
[426748175,1782778248000,-157.48811059,0.00023288,2]
[426748161,1782778248000,-10341.5689,0.00023065,2]
[426748171,1782778248000,-150.0,0.00023288,2]
[426748188,1782778248000,-188.25938531,0.00023609,2]
[426748177,1782778248000,-2000.0,0.00023333,7]
[426748179,1782778248000,-170.97673441,0.00023609,2]
[426748180,1782778248000,-187.81331854,0.00023609,2]
[426748181,1782778248000,-176.45424766,0.00023609,2]
[426748129,1782778248000,-300.0,0.00022,2]
[426748185,1782778248000,-180.39720908,0.00023609,2]
[426748182,1782778248000,-174.40784466,0.00023609,2]
[426748184,1782778248000,-182.68334485,0.00023609,2]
[426748186,1782778248000,-185.01771763,0.00023609,2]
[426748183,1782778248000,-170.35589188,0.00023609,2]
[426748189,1782778248000,-177.85626479,0.00023609,2]
[426748190,1782778248000,-150.61759924,0.00023609,2]
[426748178,1782778248000,-429.06368225,0.00023482,7]
[426748158,1782778248000,-869.0,0.00023,2]
[426748187,1782778248000,-165.04198848,0.00023609,2]
[426748156,1782778248000,-664.0,0.00023,2]
[426748160,1782778248000,-150.0,0.00023014,2]
[426748128,1782778248000,-2216.06705773,0.00022,2]
[426748131,1782778248000,-179.0,0.00022,2]
[426748130,1782778248000,-157.0,0.00022,2]
[426748133,1782778248000,-560.0,0.00022,2]
[426748136,1782778248000,-664.0,0.00022,2]
[426748135,1782778248000,-252.0,0.00022,2]
[426748134,1782778248000,-201.0,0.00022,2]
[426748138,1782778248000,-521.16,0.00022,2]
[426748140,1782778248000,-204.0,0.00022,2]
[426748144,1782778248000,-300.0,0.00022499,2]
[426748141,1782778248000,-245.25568359,0.0002211,2]
[426748146,1782778248000,-152.12,0.00022667,2]
[426748142,1782778248000,-300.0,0.00022499,2]
[426748132,1782778248000,-475.0,0.00022,2]
[426748139,1782778248000,-869.0,0.00022,2]
[426748159,1782778248000,-204.0,0.00023,2]
[426748147,1782778248000,-534.37131346,0.0002271,2]
[426748155,1782778248000,-252.0,0.00023,2]
[426748154,1782778248000,-201.0,0.00023,2]
[426748163,1782778248000,-130233.0672252,0.00023165,2]
[426748151,1782778248000,-179.0,0.00023,2]
[426748153,1782778248000,-560.0,0.00023,2]
[426748152,1782778248000,-475.0,0.00023,2]
[426748148,1782778248000,-398.19907659,0.00022851,2]
[426748143,1782778248000,-300.0,0.00022499,2]
[426748149,1782778248000,-150.0,0.00022851,2]
[426748150,1782778248000,-157.0,0.00023,2]
[426748162,1782778248000,-200.0,0.00023102,2]
[426748145,1782778248000,-36245.82527023,0.000225,2]
[426748225,1782778249000,-560.0,0.00024,2]
[426748220,1782778249000,-1262.74696786,0.00024,2]
[426748216,1782778249000,-187.93681228,0.00023771,2]
[426748221,1782778249000,-11216.173876,0.00024,2]
[426748217,1782778249000,-500.0,0.00023917,2]
[426748218,1782778249000,-1132.30584591,0.00023982,7]
[426748234,1782778249000,-4757.95,0.00024174,2]
[426748213,1782778249000,-216.77510015,0.00023771,2]
[426748219,1782778249000,-3600.0,0.00024,2]
[426748235,1782778249000,-275.47,0.00024174,2]
[426748230,1782778249000,-152.0,0.00024,2]
[426748236,1782778249000,-1372.08,0.00024174,2]
[426748224,1782778249000,-475.0,0.00024,2]
[426748226,1782778249000,-201.0,0.00024,2]
[426748227,1782778249000,-1120.0,0.00024,7]
[426748231,1782778249000,-869.0,0.00024,2]
[426748228,1782778249000,-252.0,0.00024,2]
[426748232,1782778249000,-204.0,0.00024,2]
[426748229,1782778249000,-664.0,0.00024,2]
[426748222,1782778249000,-162.0,0.00024,2]
[426748233,1782778249000,-150.0,0.00024164,2]
[426748212,1782778249000,-161.73271233,0.00023771,2]
[426748193,1782778249000,-161.79286925,0.00023609,2]
[426748214,1782778249000,-218.45150209,0.00023771,2]
[426748191,1782778249000,-202.26807697,0.00023609,2]
[426748192,1782778249000,-197.22258442,0.00023609,2]
[426748197,1782778249000,-158.90133289,0.00023635,2]
[426748195,1782778249000,-193.58074289,0.00023635,2]
[426748198,1782778249000,-180.32901812,0.00023635,2]
[426748196,1782778249000,-162.10917052,0.00023635,2]
[426748194,1782778249000,-185.09482137,0.00023635,2]
[426748199,1782778249000,-156.69209207,0.00023635,2]
[426748200,1782778249000,-203.08260919,0.00023635,2]
[426748203,1782778249000,-174.43068003,0.00023635,2]
[426748202,1782778249000,-189.18085994,0.00023635,2]
[426748206,1782778249000,-500.0,0.00023669,2]
[426748201,1782778249000,-155.80312789,0.00023635,2]
[426748207,1782778249000,-630.48,0.00023669,2]
[426748204,1782778249000,-645.65,0.00023669,2]
[426748205,1782778249000,-820.01,0.00023669,2]
[426748208,1782778249000,-546.01,0.00023669,2]
[426748210,1782778249000,-191.90104982,0.00023771,2]
[426748209,1782778249000,-185.14235001,0.00023771,2]
[426748211,1782778249000,-176.74478931,0.00023771,2]
[426748223,1782778249000,-179.0,0.00024,2]
[426748215,1782778249000,-161.99419658,0.00023771,2]
[426748237,1782778249000,-23088.22,0.00024174,2]
[426748238,1782778249000,-293.0,0.00024335,2]
[426748241,1782778249000,-1234.592,0.0002434,2]
[426748266,1782778249000,-235.86108831,0.00024865,2]
[426748267,1782778249000,-348.81568932,0.00024865,2]
[426748270,1782778249000,-365.36668969,0.00024865,2]
[426748271,1782778249000,-178.12885866,0.00024865,2]
[426748269,1782778249000,-152.53067988,0.00024865,2]
[426748268,1782778249000,-340.71178375,0.00024865,2]
[426748272,1782778249000,-360.79441816,0.00024865,2]
[426748273,1782778249000,-370.03543526,0.00024865,2]
[426748274,1782778249000,-330.08397697,0.00024865,2]
[426748264,1782778249000,-375.62663708,0.00024865,2]
[426748275,1782778249000,-153.23427527,0.00024865,2]
[426748285,1782778249000,-360.65803624,0.00024892,2]
[426748280,1782778249000,-394.44516884,0.00024865,2]
[426748284,1782778249000,-324.21834104,0.00024892,2]
[426748283,1782778249000,-387.16148577,0.00024892,2]
[426748281,1782778249000,-323.5857385,0.00024865,2]
[426748279,1782778249000,-404.53615395,0.00024865,2]
[426748282,1782778249000,-370.18964275,0.00024892,2]
[426748276,1782778249000,-376.51877063,0.00024865,2]
[426748239,1782778249000,-1362.0,0.00024335,2]
[426748277,1782778249000,-355.71252957,0.00024865,2]
[426748265,1782778249000,-352.90849531,0.00024865,2]
[426748278,1782778249000,-301.23519848,0.00024865,2]
[426748259,1782778249000,-1000.0,0.00024658,2]
[426748240,1782778249000,-1280.426,0.00024335,2]
[426748262,1782778249000,-563.48,0.0002479,2]
[426748243,1782778249000,-218.791,0.0002434,2]
[426748245,1782778249000,-1997.52172869,0.00024482,7]
[426748247,1782778249000,-4043.1006,0.00024482,7]
[426748242,1782778249000,-6087.0,0.0002434,2]
[426748252,1782778249000,-390.280005,0.00024658,2]
[426748249,1782778249000,-521.16,0.00024566,7]
[426748248,1782778249000,-151.0,0.00024538,7]
[426748246,1782778249000,-2988.17304219,0.00024482,7]
[426748251,1782778249000,-390.280005,0.00024658,2]
[426748250,1782778249000,-181.88,0.00024658,2]
[426748253,1782778249000,-390.280005,0.00024658,2]
[426748257,1782778249000,-151.0,0.00024658,2]
[426748255,1782778249000,-151.0,0.00024658,2]
[426748256,1782778249000,-151.0,0.00024658,2]
[426748254,1782778249000,-390.280005,0.00024658,2]
[426748258,1782778249000,-151.0,0.00024658,2]
[426748261,1782778249000,-3526.16747418,0.00024764,7]
[426748244,1782778249000,-518.5,0.00024465,2]
[426748263,1782778249000,-341.95346883,0.00024865,2]
[426748260,1782778249000,-500.0,0.00024712,2]
[426748332,1782778250000,-512.93020324,0.00025703,2]
[426748328,1782778250000,-233.0,0.0002552,2]
[426748326,1782778250000,-150.0,0.00025373,2]
[426748324,1782778250000,-162.63,0.000252,7]
[426748342,1782778250000,-284.76188758,0.00025703,2]
[426748319,1782778250000,-245.60393004,0.00025033,2]
[426748323,1782778250000,-152.12,0.00025185,120]
[426748321,1782778250000,-375.87362457,0.00025033,2]
[426748316,1782778250000,-323.98839317,0.00025033,2]
[426748331,1782778250000,-431.93206847,0.00025703,2]
[426748317,1782778250000,-221.46026609,0.00025033,2]
[426748322,1782778250000,-215.04522789,0.00025033,2]
[426748329,1782778250000,-334.7249507,0.00025561,2]
[426748345,1782778250000,-356.25771732,0.00025703,2]
[426748327,1782778250000,-200.0,0.00025482,2]
[426748333,1782778250000,-248.36443086,0.00025703,2]
[426748338,1782778250000,-471.72217662,0.00025703,2]
[426748335,1782778250000,-203.4711664,0.00025703,2]
[426748337,1782778250000,-529.36274297,0.00025703,2]
[426748340,1782778250000,-523.22353398,0.00025703,2]
[426748334,1782778250000,-563.43995562,0.00025703,2]
[426748336,1782778250000,-259.98669383,0.00025703,2]
[426748344,1782778250000,-548.05003454,0.00025703,2]
[426748339,1782778250000,-242.37690128,0.00025703,2]
[426748341,1782778250000,-511.06767563,0.00025703,2]
[426748314,1782778250000,-433.55020031,0.00025033,2]
[426748330,1782778250000,-5265.54863112,0.00025581,2]
[426748318,1782778250000,-159.72018684,0.00025033,2]
[426748294,1782778250000,-78011.56510247,0.00025,60]
[426748313,1782778250000,-176.7845279,0.00025033,2]
[426748286,1782778250000,-317.80266579,0.00024892,2]
[426748287,1782778250000,-313.38418414,0.00024892,2]
[426748290,1782778250000,-378.36171989,0.00024892,2]
[426748289,1782778250000,-311.60625578,0.00024892,2]
[426748291,1782778250000,-348.86136007,0.00024892,2]
[426748292,1782778250000,-154.46935751,0.00024967,2]
[426748295,1782778250000,-298.028141,0.00025,7]
[426748293,1782778250000,-233.0,0.00025,2]
[426748288,1782778250000,-406.16521837,0.00024892,2]
[426748297,1782778250000,-185.0,0.00025,2]
[426748307,1782778250000,-215.1063841,0.00025033,2]
[426748299,1782778250000,-573.0,0.00025,2]
[426748296,1782778250000,-461069.27233071,0.00025,2]
[426748300,1782778250000,-201.0,0.00025,2]
[426748301,1782778250000,-252.0,0.00025,2]
[426748308,1782778250000,-370.28470002,0.00025033,2]
[426748302,1782778250000,-673.83020111,0.00025,2]
[426748298,1782778250000,-486.64602063,0.00025,2]
[426748303,1782778250000,-155.0,0.00025,2]
[426748304,1782778250000,-888.10058497,0.00025,2]
[426748306,1782778250000,-537.6845,0.00025013,2]
[426748305,1782778250000,-217.59292995,0.00025,2]
[426748309,1782778250000,-383.80209964,0.00025033,2]
[426748312,1782778250000,-167.54671676,0.00025033,2]
[426748311,1782778250000,-353.48957861,0.00025033,2]
[426748315,1782778250000,-436.90300419,0.00025033,2]
[426748310,1782778250000,-323.46542466,0.00025033,2]
[426748320,1782778250000,-209.47141511,0.00025033,2]
[426748343,1782778250000,-305.06135975,0.00025703,2]
[426748325,1782778250000,-2198.0,0.00025325,5]
[426748346,1782778250000,-229.81167333,0.00025703,2]
[426748374,1782778250000,-476.70399868,0.0002573,2]
[426748377,1782778250000,-609.24782756,0.0002573,2]
[426748387,1782778250000,-151.0,0.000258,2]
[426748389,1782778250000,-185.963335,0.000258,2]
[426748382,1782778250000,-1800323.7272734,0.000258,2]
[426748384,1782778250000,-390.280005,0.000258,2]
[426748386,1782778250000,-390.280005,0.000258,2]
[426748388,1782778250000,-390.280005,0.000258,2]
[426748383,1782778250000,-151.00001,0.000258,2]
[426748385,1782778250000,-390.280005,0.000258,2]
[426748394,1782778250000,-277.297046,0.000258,2]
[426748390,1782778250000,-185.963335,0.000258,2]
[426748391,1782778250000,-185.963335,0.000258,2]
[426748392,1782778250000,-185.963335,0.000258,2]
[426748393,1782778250000,-151.0,0.000258,2]
[426748396,1782778250000,-192.710337,0.000258,2]
[426748406,1782778250000,-170.143497,0.000258,2]
[426748395,1782778250000,-192.710337,0.000258,2]
[426748399,1782778250000,-151.0,0.000258,2]
[426748398,1782778250000,-192.710337,0.000258,2]
[426748397,1782778250000,-192.710337,0.000258,2]
[426748400,1782778250000,-151.0,0.000258,2]
[426748404,1782778250000,-3035.015411,0.000258,2]
[426748403,1782778250000,-3035.015411,0.000258,2]
[426748401,1782778250000,-151.0,0.000258,2]
[426748402,1782778250000,-3035.015411,0.000258,2]
[426748405,1782778250000,-3035.015411,0.000258,2]
[426748375,1782778250000,-540.98705435,0.0002573,2]
[426748376,1782778250000,-470.07627621,0.0002573,2]
[426748347,1782778250000,-290.14612559,0.00025703,2]
[426748373,1782778250000,-222.64013693,0.0002573,2]
[426748378,1782778250000,-467.40938366,0.0002573,2]
[426748350,1782778250000,-555.05315288,0.00025703,2]
[426748348,1782778250000,-185.75171505,0.00025703,2]
[426748357,1782778250000,-192.38320141,0.00025703,2]
[426748349,1782778250000,-541.19162723,0.00025703,2]